bitfinex/quotes_BTCUSD_20220101
["timestamp","ask_amount","ask_price","bid_price","bid_amount"]
[1641065708049,0.00924624,47346.0,47344.0,1.17157]
[1641065708249,0.09908149,47355.0,47345.0,3.57558978]
[1641065708448,0.09908149,47355.0,47348.0,2.14007395]
[1641065708651,0.09908149,47355.0,47348.0,3.02088395]
[1641065708849,0.09908149,47355.0,47348.0,3.02124911]
[1641065709049,0.1,47351.0,47348.0,3.02124911]
[1641065709652,0.1,47351.0,47348.0,3.07403011]
[1641065710767,0.1,47351.0,47348.0,1.47709316]
[1641065710961,0.10121912,47351.0,47348.0,1.27709316]
[1641065711562,0.742,47349.0,47348.0,1.22989316]
[1641065711763,1.18532265,47349.0,47348.0,1.22989316]
[1641065711963,1.18532265,47349.0,47348.0,0.89032616]
[1641065712861,1.18532265,47349.0,47348.0,0.99032616]
[1641065712862,1.20472332,47349.0,47348.0,0.99032616]
[1641065713063,1.20472332,47349.0,47348.0,1.09032616]
[1641065713867,1.22433045,47349.0,47348.0,1.09032616]
[1641065714124,1.20492978,47349.0,47348.0,1.09032616]
[1641065714926,1.22620368,47349.0,47348.0,1.09032616]
[1641065715124,1.20659655,47349.0,47348.0,1.09032616]
[1641065715525,1.20652991,47349.0,47348.0,0.99032616]
[1641065715830,1.20652991,47349.0,47339.0,0.00630575]
[1641065715831,0.05486725,47340.0,47335.0,0.1]
[1641065716029,0.00120855,47334.0,47329.0,0.0999]
[1641065716230,0.00120855,47334.0,47333.0,0.15]
[1641065716428,1.26477855,47334.0,47333.0,0.15]
[1641065716728,1.60001089,47334.0,47333.0,0.00027387]
[1641065717126,1.60001089,47334.0,47331.0,0.00031038]
[1641065717127,1.59501089,47334.0,47331.0,0.00031038]
[1641065717330,1.25977855,47332.0,47331.0,0.00031038]
[1641065717777,1.26101869,47332.0,47331.0,0.00031038]
[1641065717967,1.25722706,47332.0,47331.0,0.00031038]
[1641065718571,1.25722706,47332.0,47331.0,0.21031038]
[1641065718772,1.25722706,47332.0,47331.0,0.21]
[1641065718973,1.27812788,47332.0,47331.0,0.36031038]
[1641065719570,1.25722706,47332.0,47331.0,0.36031038]
[1641065719969,1.27535376,47332.0,47331.0,0.36031038]
[1641065720170,0.16535376,47332.0,47331.0,0.36031038]
[1641065720371,1.01535376,47332.0,47331.0,0.36031038]
[1641065721172,0.99722706,47332.0,47331.0,0.36031038]
[1641065722011,1.01565164,47332.0,47331.0,0.36031038]
[1641065723010,1.01710518,47332.0,47331.0,0.36031038]
[1641065723812,1.01710518,47332.0,47331.0,0.3598469]
[1641065724117,1.01488259,47332.0,47331.0,0.3598469]
[1641065724812,1.01488259,47332.0,47331.0,0.2098469]
[1641065725013,1.034809,47332.0,47331.0,0.2098469]
[1641065725275,0.16567489,47332.0,47331.0,0.2098469]
[1641065725469,0.64567489,47332.0,47331.0,0.2098469]
[1641065726069,0.62574848,47332.0,47331.0,0.35879476]
[1641065727668,0.64469044,47332.0,47331.0,0.35879476]
[1641065727872,0.64593357,47332.0,47331.0,0.2098469]
[1641065728070,0.64593357,47332.0,47331.0,0.6927565]
[1641065728071,0.18358544,47332.0,47331.0,0.6927565]
[1641065728270,0.07219479,47332.0,47331.0,0.87866304]
[1641065728469,0.07219479,47332.0,47331.0,0.73532044]
[1641065729129,0.07219479,47332.0,47331.0,1.00829632]
[1641065729332,0.07219479,47332.0,47331.0,1.00071788]
[1641065729528,0.07219479,47332.0,47331.0,1.00819752]
[1641065729729,0.05329979,47332.0,47331.0,1.00071788]
[1641065729931,0.05329979,47332.0,47331.0,1.53604112]
[1641065730132,0.05329979,47332.0,47331.0,1.04791788]
[1641065730332,0.05329979,47332.0,47331.0,2.65931081]
[1641065730530,0.14574848,47332.0,47331.0,2.65931081]
[1641065731533,0.14574848,47332.0,47331.0,1.54131081]
[1641065732135,0.05329979,47332.0,47331.0,1.54131081]
[1641065732334,0.14574848,47332.0,47331.0,2.65931081]
[1641065733378,0.14574848,47332.0,47331.0,1.54131081]
[1641065733978,0.14574848,47332.0,47331.0,2.65931081]
[1641065734585,0.05329979,47332.0,47331.0,3.29314081]
[1641065735181,0.14574848,47332.0,47331.0,3.29314081]
[1641065737929,0.05329979,47332.0,47331.0,3.29314081]
[1641065738332,0.14574848,47332.0,47331.0,3.29314081]
[1641065739329,0.14574848,47332.0,47331.0,3.39395787]
[1641065739634,0.05357,47333.0,47332.0,1.09]
[1641065739830,0.05357,47333.0,47332.0,4.47889594]
[1641065740030,0.05357,47333.0,47332.0,4.57918806]
[1641065740283,0.00924631,47337.0,47335.0,0.05357]
[1641065740480,0.00924631,47337.0,47336.0,2.79110352]
[1641065740781,0.00924631,47337.0,47336.0,2.34232609]
[1641065740980,0.00924631,47337.0,47336.0,1.27712109]
[1641065742185,0.14524344,47338.0,47336.0,1.37712109]
[1641065742382,0.14524344,47338.0,47337.0,0.20357]
[1641065742582,0.14524344,47338.0,47337.0,0.88472083]
[1641065742985,0.14524344,47338.0,47337.0,0.98472083]
[1641065744925,0.14524344,47338.0,47337.0,2.10272083]
[1641065745120,0.14524344,47338.0,47337.0,2.44228783]
[1641065746621,0.14524344,47338.0,47337.0,1.32428783]
[1641065747020,0.14524344,47338.0,47337.0,2.44228783]
[1641065747220,0.14524344,47338.0,47337.0,1.32428783]
[1641065747423,0.14524344,47338.0,47337.0,0.98472083]
[1641065748571,0.14524344,47338.0,47337.0,2.10272083]
[1641065748772,0.14524344,47338.0,47337.0,2.44228783]
[1641065755280,0.14524344,47338.0,47337.0,1.32428783]
[1641065755469,0.14524344,47338.0,47337.0,2.44228783]
[1641065756469,0.14524344,47338.0,47337.0,1.32428783]
[1641065757871,0.14524344,47338.0,47337.0,1.22428783]
[1641065758069,0.14524344,47338.0,47337.0,1.27428783]
[1641065760430,0.14524344,47338.0,47337.0,1.22708783]
[1641065761029,0.14524344,47338.0,47337.0,1.37428783]
[1641065761628,0.14524344,47338.0,47337.0,2.49228783]
[1641065762328,0.02087728,47340.0,47338.0,0.34348597]
[1641065762529,0.00924623,47342.0,47341.0,0.29556286]
[1641065762772,0.10169492,47342.0,47341.0,2.51850002]
[1641065762972,0.10169492,47342.0,47341.0,2.56862782]
[1641065763167,0.10169492,47342.0,47341.0,2.66862782]
[1641065763366,0.10169492,47342.0,47341.0,2.90382308]
[1641065763967,0.10169492,47342.0,47341.0,2.95661408]
[1641065764268,0.09244869,47342.0,47341.0,2.95661408]
[1641065766528,0.09244869,47342.0,47341.0,2.72141882]
[1641065767527,0.09244869,47342.0,47341.0,2.99684048]
[1641065768728,0.09244869,47342.0,47341.0,2.72141882]
[1641065770132,0.09244869,47342.0,47341.0,2.93141882]
[1641065772879,0.45244869,47342.0,47341.0,2.93141882]
[1641065773177,0.09244869,47342.0,47341.0,2.93141882]
[1641065781171,0.10558297,47343.0,47341.0,2.93141882]
[1641065781172,0.05279097,47343.0,47341.0,2.93141882]
[1641065781370,0.00927173,47347.0,47344.0,1.09629948]
[1641065781621,0.00927173,47347.0,47346.0,2.64424344]
[1641065781820,0.09244869,47361.0,47351.0,0.05357]
[1641065782019,0.0047,47363.0,47356.0,0.15]
[1641065782222,0.09244869,47366.0,47358.0,1.06745724]
[1641065782421,0.001,47369.0,47364.0,0.05357]
[1641065782620,0.85244869,47365.0,47364.0,0.05357]
[1641065782819,0.85244869,47365.0,47354.0,0.0472]
[1641065782820,1.15857,47364.0,47354.0,0.0472]
[1641065783019,0.14601869,47355.0,47354.0,0.0472]
[1641065783220,0.14601869,47355.0,47354.0,0.72630789]
[1641065783420,0.1461465,47355.0,47354.0,1.01867489]
[1641065783620,1.2561465,47355.0,47354.0,1.12145689]
[1641065783825,1.2561465,47355.0,47354.0,0.488102]
[1641065784021,0.05357,47353.0,47348.0,0.00972178]
[1641065784221,1.2572305,47349.0,47348.0,0.00972178]
[1641065784720,0.05479449,47346.0,47344.0,0.06382555]
[1641065784919,0.05479449,47346.0,47345.0,0.15]
[1641065785119,0.48419508,47346.0,47345.0,0.15]
[1641065785770,1.41419508,47346.0,47345.0,0.15]
[1641065790121,1.41419508,47346.0,47345.0,0.36]
[1641065790721,1.07724318,47346.0,47345.0,0.36]
[1641065791522,0.14601869,47346.0,47345.0,0.95320956]
[1641065791724,0.14601869,47346.0,47345.0,2.46481883]
[1641065791921,0.14601869,47346.0,47345.0,2.04143064]
[1641065792123,0.05357,47346.0,47345.0,2.66989966]
[1641065792420,0.05357,47346.0,47345.0,2.68891462]
[1641065792621,0.05357,47346.0,47345.0,2.66742196]
[1641065793085,0.14601869,47346.0,47345.0,2.66742196]
[1641065793685,7.303e-05,47352.0,47345.0,2.7410928]
[1641065793886,7.303e-05,47352.0,47350.0,0.13802411]
[1641065794084,7.303e-05,47352.0,47351.0,0.47759111]
[1641065794287,7.303e-05,47352.0,47351.0,0.52759111]
[1641065794889,7.303e-05,47352.0,47351.0,0.58037411]
[1641065795687,7.303e-05,47352.0,47351.0,0.60213468]
[1641065796530,7.303e-05,47352.0,47351.0,0.62095126]
[1641065796731,7.303e-05,47352.0,47351.0,0.59919069]
[1641065797530,7.303e-05,47352.0,47351.0,1.01935133]
[1641065797732,7.303e-05,47352.0,47351.0,1.00053475]
[1641065798535,7.303e-05,47352.0,47351.0,2.11853475]
[1641065798736,7.303e-05,47352.0,47351.0,2.11927488]
[1641065798936,7.303e-05,47352.0,47351.0,0.60092292]
[1641065799537,7.303e-05,47352.0,47351.0,0.61998708]
[1641065799737,7.303e-05,47352.0,47351.0,0.59943827]
[1641065800581,7.303e-05,47352.0,47351.0,0.6195226]
[1641065800784,7.303e-05,47352.0,47351.0,0.60045844]
[1641065801582,7.303e-05,47352.0,47351.0,0.61875554]
[1641065801881,7.303e-05,47352.0,47351.0,0.59867121]
[1641065802483,7.303e-05,47352.0,47351.0,0.61916131]
[1641065802882,7.303e-05,47352.0,47351.0,0.60086421]
[1641065803082,7.303e-05,47352.0,47351.0,0.65086421]
[1641065803484,7.303e-05,47352.0,47351.0,1.0528217]
[1641065803684,7.303e-05,47352.0,47351.0,1.05333455]
[1641065804631,7.303e-05,47352.0,47351.0,1.07305486]
[1641065804829,7.303e-05,47352.0,47351.0,1.05205191]
[1641065805030,7.303e-05,47352.0,47351.0,2.20815539]
[1641065805230,7.303e-05,47352.0,47351.0,2.17005191]
[1641065805631,7.303e-05,47352.0,47351.0,2.19009155]
[1641065805831,7.303e-05,47352.0,47351.0,2.17037124]
[1641065806031,7.303e-05,47352.0,47351.0,2.16105458]
[1641065806331,7.303e-05,47352.0,47351.0,0.65041375]
[1641065806532,7.303e-05,47352.0,47351.0,0.6689383]
[1641065806732,7.303e-05,47352.0,47351.0,0.64889866]
[1641065807774,7.303e-05,47352.0,47351.0,0.64878754]
[1641065808069,0.04785542,47353.0,47352.0,0.38295319]
[1641065808270,0.04785542,47353.0,47352.0,0.8069743]
[1641065809673,0.04785542,47353.0,47352.0,0.82829252]
[1641065810671,0.04785542,47353.0,47352.0,0.8501993]
[1641065810873,0.04785542,47353.0,47352.0,0.82888108]
[1641065811074,0.04785542,47353.0,47352.0,1.22390763]
[1641065811728,0.04785542,47353.0,47352.0,1.24527856]
[1641065812029,0.04785542,47353.0,47352.0,0.49896204]
[1641065812732,0.04785542,47353.0,47352.0,0.51855332]
[1641065812929,0.04785542,47353.0,47352.0,0.49718239]
[1641065813833,0.04785542,47353.0,47352.0,0.51730245]
[1641065814029,0.04785542,47353.0,47352.0,0.49771117]
[1641065814629,0.04785542,47353.0,47352.0,0.51902199]
[1641065815486,0.04785542,47353.0,47352.0,0.47759111]
[1641065815686,0.04785542,47353.0,47352.0,0.89160678]
[1641065816088,0.04785542,47353.0,47352.0,0.49663016]
[1641065816686,0.04285542,47353.0,47352.0,2.01275644]
[1641065816887,0.00861,47354.0,47352.0,2.07856893]
[1641065817088,0.00861,47354.0,47353.0,2.05083934]
[1641065817287,0.00861,47354.0,47353.0,2.09803934]
[1641065817491,0.00861,47354.0,47353.0,2.83157934]
[1641065817688,0.00861,47354.0,47353.0,2.85206401]
[1641065818691,0.00861,47354.0,47353.0,2.87288889]
[1641065818892,0.00861,47354.0,47353.0,2.85240422]
[1641065819133,0.00861,47354.0,47353.0,1.27915599]
[1641065819334,0.00861,47354.0,47353.0,2.79166159]
[1641065819738,0.00861,47354.0,47353.0,2.81031194]
[1641065819934,0.00861,47354.0,47353.0,2.78948706]
[1641065820338,0.00861,47354.0,47353.0,1.27698146]
[1641065820735,0.00861,47354.0,47353.0,1.29520904]
[1641065821035,0.00861,47354.0,47353.0,1.27655869]
[1641065821437,0.00861,47354.0,47353.0,2.39455869]
[1641065821636,0.00861,47354.0,47353.0,1.27655869]
[1641065821834,0.00861,47354.0,47353.0,1.29460666]
[1641065822034,0.00861,47354.0,47353.0,1.27637908]
[1641065822638,0.00861,47354.0,47353.0,2.39437908]
[1641065822882,0.00861,47354.0,47353.0,2.39619379]
[1641065823881,0.00861,47354.0,47353.0,2.3954334]
[1641065824883,0.00861,47354.0,47353.0,2.41692744]
[1641065825082,0.00861,47354.0,47353.0,2.39782515]
[1641065825283,0.00861,47354.0,47353.0,1.27982515]
[1641065825885,0.00861,47354.0,47353.0,1.27907261]
[1641065826717,0.00861,47354.0,47353.0,1.2984473]
[1641065826918,0.00861,47354.0,47353.0,1.2777058]
[1641065827923,0.00861,47354.0,47353.0,1.27643444]
[1641065828922,0.00861,47354.0,47353.0,1.27939762]
[1641065829922,0.00861,47354.0,47353.0,1.19908105]
[1641065830121,0.00861,47354.0,47353.0,1.17801454]
[1641065830390,0.00861,47354.0,47353.0,1.13081454]
[1641065830783,0.00861,47354.0,47353.0,1.14968017]
[1641065830985,0.00861,47354.0,47353.0,1.12999674]
[1641065831788,0.00861,47354.0,47353.0,1.15119137]
[1641065831988,0.00861,47354.0,47353.0,1.13232574]
[1641065832988,0.00861,47354.0,47353.0,1.1541567]
[1641065833191,0.00861,47354.0,47353.0,1.13296207]
[1641065833890,0.00861,47354.0,47353.0,1.1541962]
[1641065834136,0.00861,47354.0,47353.0,1.13236524]
[1641065835036,0.00861,47354.0,47353.0,1.13213186]
[1641065835840,0.00861,47354.0,47353.0,1.15237158]
[1641065836037,0.00861,47354.0,47353.0,1.13137083]
[1641065836641,3.17254091,47354.0,47353.0,1.13137083]
[1641065836844,3.71016166,47354.0,47353.0,0.70734972]
[1641065837040,3.71016166,47354.0,47353.0,0.72612796]
[1641065837041,3.63930791,47354.0,47353.0,0.72612796]
[1641065837240,3.72172791,47354.0,47353.0,0.28351306]
[1641065837454,3.72172791,47354.0,47353.0,0.16521306]
[1641065837455,3.79387791,47354.0,47353.0,0.16521306]
[1641065837641,0.00128924,47346.0,47345.0,0.21]
[1641065838091,0.00128924,47346.0,47345.0,0.2101278]
[1641065838990,0.00128924,47346.0,47345.0,0.2629288]
[1641065839190,0.00128924,47346.0,47345.0,0.34697572]
[1641065839391,0.00128924,47346.0,47345.0,0.2629288]
[1641065839591,0.00128924,47346.0,47345.0,0.34697839]
[1641065839793,1.21766057,47346.0,47345.0,0.34697839]
[1641065840192,1.21766057,47346.0,47345.0,0.2629288]
[1641065840593,1.21766057,47346.0,47345.0,0.34697839]
[1641065840795,1.21766057,47346.0,47345.0,0.34697927]
[1641065840993,1.23835224,47346.0,47345.0,0.34697927]
[1641065841196,1.23835224,47346.0,47345.0,0.2629288]
[1641065841395,1.23835224,47346.0,47345.0,0.34697839]
[1641065841633,1.68471999,47346.0,47345.0,0.2629288]
[1641065841833,1.70536101,47346.0,47345.0,0.2629288]
[1641065842034,1.68466934,47346.0,47345.0,0.2629288]
[1641065842634,1.68466934,47346.0,47345.0,0.34698016]
[1641065842834,1.68466934,47346.0,47345.0,0.2629288]
[1641065843034,1.70474789,47346.0,47345.0,0.2629288]
[1641065843235,1.68410687,47346.0,47345.0,0.34698016]
[1641065843935,1.70607336,47346.0,47345.0,0.34698016]
[1641065844135,1.57755807,47346.0,47345.0,0.40055016]
[1641065844341,1.57882731,47346.0,47345.0,0.40055016]
[1641065844537,1.13245956,47346.0,47345.0,0.40055016]
[1641065844941,1.20348031,47346.0,47345.0,0.40055016]
[1641065845140,1.18151382,47346.0,47345.0,0.40055016]
[1641065845385,1.62884642,47346.0,47345.0,0.3164988]
[1641065845985,1.64739382,47346.0,47345.0,0.40055016]
[1641065846186,1.6291744,47346.0,47345.0,0.40055016]
[1641065846586,1.6291744,47346.0,47345.0,0.3164988]
[1641065846786,0.51995057,47346.0,47345.0,0.3164988]
[1641065846989,0.65967839,47346.0,47345.0,0.3164988]
[1641065847187,0.64113099,47346.0,47345.0,0.40055016]
[1641065847389,0.64113099,47346.0,47345.0,0.50055016]
[1641065847589,0.64113099,47346.0,47345.0,0.45055016]
[1641065847788,0.64113099,47346.0,47345.0,0.40055016]
[1641065847988,0.65990052,47346.0,47345.0,0.40055016]
[1641065849031,0.67960058,47346.0,47345.0,0.40055016]
[1641065849232,0.64250139,47346.0,47345.0,0.40055016]
[1641065850632,0.66062302,47346.0,47345.0,0.3164988]
[1641065851033,0.98062302,47346.0,47345.0,0.3164988]
[1641065851233,0.94280133,47346.0,47345.0,0.3164988]
[1641065851435,0.94280133,47346.0,47345.0,0.40055016]
[1641065851635,0.62280133,47346.0,47345.0,0.40055016]
[1641065852033,0.64340826,47346.0,47345.0,0.40055016]
[1641065852235,0.66267511,47346.0,47345.0,0.3164988]
[1641065852435,0.64206818,47346.0,47345.0,0.40055016]
[1641065852634,0.62280133,47346.0,47345.0,0.40055016]
[1641065852896,0.62280133,47346.0,47345.0,0.3164988]
[1641065853094,0.64130085,47346.0,47345.0,0.3164988]
[1641065853296,0.64130085,47346.0,47345.0,0.2636978]
[1641065853896,1.04954649,47346.0,47345.0,0.2636978]
[1641065854096,1.04954649,47346.0,47345.0,0.4136978]
[1641065854299,1.03104697,47346.0,47345.0,0.4136978]
[1641065854497,0.64104697,47346.0,47345.0,0.4136978]
[1641065854898,0.95104697,47346.0,47345.0,0.4136978]
[1641065855099,0.97162952,47346.0,47345.0,0.2636978]
[1641065855295,0.95338388,47346.0,47345.0,0.2636978]
[1641065856100,1.3953928,47346.0,47345.0,0.2636978]
[1641065857138,1.41417684,47346.0,47345.0,0.2636978]
[1641065857338,0.95282433,47346.0,47345.0,0.4136978]
[1641065857936,0.97334406,47346.0,47345.0,0.4136978]
[1641065858136,0.95456002,47346.0,47345.0,0.4136978]
[1641065858839,0.64332106,47346.0,47345.0,0.4136978]
[1641065859137,0.66444806,47346.0,47345.0,0.4136978]
[1641065859337,0.64392833,47346.0,47345.0,0.4136978]
[1641065860136,0.64200771,47346.0,47345.0,0.4136978]
[1641065861000,0.6637832,47346.0,47345.0,0.4136978]
[1641065861201,0.64457682,47346.0,47345.0,0.4136978]
[1641065861802,0.95457682,47346.0,47345.0,0.4136978]
[1641065862007,0.97370612,47346.0,47345.0,0.4136978]
[1641065862205,0.95193063,47346.0,47345.0,0.4136978]
[1641065862803,0.64193063,47346.0,47345.0,0.4136978]
[1641065863003,0.66114917,47346.0,47345.0,0.4136978]
[1641065863206,0.64201987,47346.0,47345.0,0.4136978]
[1641065864530,0.64201987,47346.0,47345.0,0.51831115]
[1641065864734,0.66013164,47346.0,47345.0,0.51831115]
[1641065864930,0.6409131,47346.0,47345.0,0.51831115]
[1641065865130,0.09129209,47346.0,47345.0,0.51831115]
[1641065865333,0.09129209,47346.0,47345.0,0.5136978]
[1641065865530,0.09129209,47346.0,47345.0,0.8532648]
[1641065865931,0.05280133,47346.0,47345.0,0.8532648]
[1641065867981,0.05280133,47346.0,47345.0,0.853137]
[1641065872727,0.05280133,47346.0,47345.0,0.753137]
[1641065872927,0.05280133,47346.0,47345.0,0.41357]
[1641065883577,0.05280133,47346.0,47345.0,0.61337565]
[1641065883774,0.05280133,47346.0,47345.0,0.853137]
[1641065884875,0.05280133,47346.0,47345.0,0.85830156]
[1641065885078,0.05280133,47346.0,47345.0,0.853137]
[1641065886523,0.052801,47348.0,47345.0,0.853137]
[1641065886724,0.10558826,47348.0,47347.0,0.543137]
[1641065890385,0.052801,47348.0,47347.0,0.543137]
[1641065894535,0.052801,47348.0,47347.0,0.20357]
[1641065896939,0.052801,47348.0,47347.0,0.05357]
[1641065897137,0.15838825,47349.0,47348.0,0.05357]
[1641065897335,0.15960237,47349.0,47348.0,0.05357]
[1641065897535,0.15960237,47349.0,47348.0,0.05364303]
[1641065899176,1.73110239,47349.0,47348.0,0.05364303]
[1641065899378,2.07066939,47349.0,47348.0,0.05364303]
[1641065900382,1.73110239,47349.0,47348.0,0.05364303]
[1641065900579,1.75202042,47349.0,47348.0,0.05364303]
[1641065901636,1.7509223,47349.0,47348.0,0.05364303]
[1641065902537,1.76978306,47349.0,47348.0,0.05364303]
[1641065902839,1.29846313,47349.0,47348.0,0.05364303]
[1641065903240,1.74683302,47349.0,47348.0,0.05364303]
[1641065903442,1.7648597,47349.0,47348.0,0.05364303]
[1641065903641,1.74599894,47349.0,47348.0,0.05364303]
[1641065904245,0.00121413,47336.0,47334.0,0.00922343]
[1641065904444,0.00121413,47336.0,47335.0,0.63378]
[1641065904742,0.00121413,47336.0,47335.0,0.63401735]
[1641065905144,0.00121413,47336.0,47335.0,0.78401735]
[1641065905382,1.57698946,47336.0,47335.0,0.78401735]
[1641065906582,1.59688948,47336.0,47335.0,0.78401735]
[1641065907585,1.61715937,47336.0,47335.0,0.78401735]
[1641065907783,1.59725935,47336.0,47335.0,0.78401735]
[1641065908587,1.61549455,47336.0,47335.0,0.78401735]
[1641065908784,1.59522466,47336.0,47335.0,0.78401735]
[1641065909323,1.24583433,47336.0,47335.0,0.78401735]
[1641065909521,1.26552522,47336.0,47335.0,0.78401735]
[1641065909721,1.24729002,47336.0,47335.0,0.78401735]
[1641065910524,1.26813792,47336.0,47335.0,0.78401735]
[1641065910725,1.24844703,47336.0,47335.0,0.78401735]
[1641065911527,1.26747648,47336.0,47335.0,0.78401735]
[1641065911925,1.22759913,47336.0,47335.0,0.78401735]
[1641065912326,1.43759913,47336.0,47335.0,0.78401735]
[1641065912527,1.4569273,47336.0,47335.0,0.78401735]
[1641065913580,1.47538875,47336.0,47335.0,0.78401735]
[1641065913782,1.45606058,47336.0,47335.0,0.78401735]
[1641065914582,1.476291,47336.0,47335.0,0.78401735]
[1641065914779,1.45782955,47336.0,47335.0,0.78401735]
[1641065915681,1.47661354,47336.0,47335.0,0.78401735]
[1641065915880,1.45638312,47336.0,47335.0,0.78401735]
[1641065916725,1.90590926,47336.0,47335.0,0.78401735]
[1641065917525,1.43759913,47336.0,47335.0,0.78401735]
[1641065917728,1.45600795,47336.0,47335.0,0.78401735]
[1641065918726,1.47652115,47336.0,47335.0,0.78401735]
[1641065918928,1.45811233,47336.0,47335.0,0.78401735]
[1641065919326,1.45305592,47336.0,47335.0,0.78401735]
[1641065919728,1.47433155,47336.0,47335.0,0.78401735]
[1641065920128,1.47433155,47336.0,47335.0,0.36147235]
[1641065920385,1.91532674,47336.0,47335.0,0.36147235]
[1641065920787,1.49472575,47336.0,47335.0,0.36147235]
[1641065920984,1.45293692,47336.0,47335.0,0.36147235]
[1641065921590,2.24006083,47336.0,47335.0,0.21147235]
[1641065921788,1.79169127,47336.0,47335.0,0.21147235]
[1641065922686,1.80995483,47336.0,47335.0,0.36147235]
[1641065922887,1.79037328,47336.0,47335.0,0.36147235]
[1641065923287,1.79037328,47336.0,47325.0,0.106184]
[1641065923288,0.1765488,47333.0,47327.0,0.00033]
[1641065923490,0.1765488,47333.0,47318.0,0.00044]
[1641065923491,0.0012834,47324.0,47318.0,0.00044]
[1641065923688,0.00125239,47321.0,47318.0,0.00044]
[1641065923891,1.17357,47319.0,47318.0,0.00011]
[1641065924147,1.387285,47319.0,47318.0,0.00011]
[1641065924347,1.387285,47319.0,47315.0,0.00033]
[1641065924548,0.05357,47317.0,47306.0,0.04921038]
[1641065924749,0.05357,47317.0,47305.0,0.00592509]
[1641065924750,0.15851289,47313.0,47305.0,0.00044]
[1641065924944,0.05357,47312.0,47307.0,0.00020084]
[1641065925445,0.05357,47312.0,47311.0,0.15]
[1641065925645,1.06357,47312.0,47311.0,0.145]
[1641065925845,1.1692466,47312.0,47311.0,0.14512781]
[1641065926651,1.18840501,47312.0,47311.0,0.14512781]
[1641065927048,1.1692466,47312.0,47311.0,0.14512781]
[1641065927876,1.18738321,47312.0,47311.0,0.14512781]
[1641065928476,0.17738321,47312.0,47311.0,0.14512781]
[1641065928678,0.19661383,47312.0,47311.0,0.14512781]
[1641065928878,0.07280062,47312.0,47311.0,0.65146799]
[1641065929081,0.07280062,47312.0,47311.0,1.71965638]
[1641065929477,0.07280062,47312.0,47311.0,1.95907889]
[1641065929777,0.07280062,47312.0,47311.0,2.70764225]
[1641065929980,0.05357,47312.0,47311.0,2.75484225]
[1641065930178,0.05357,47312.0,47311.0,3.87284225]
[1641065931178,0.05357,47312.0,47311.0,2.75484225]
[1641065932130,0.05357,47312.0,47311.0,3.87284225]
[1641065932331,0.07419021,47330.0,47319.0,0.05357]
[1641065932533,0.02137921,47330.0,47321.0,0.05357]
[1641065932730,0.02137921,47330.0,47327.0,0.05357]
[1641065932930,0.23137921,47330.0,47329.0,0.13765243]
[1641065933130,1.20137921,47330.0,47329.0,0.13765243]
[1641065933330,1.2015983,47330.0,47329.0,0.18765243]
[1641065933530,1.18021909,47330.0,47329.0,0.18765243]
[1641065933730,1.19898617,47330.0,47329.0,0.18765243]
[1641065934831,1.21909645,47330.0,47329.0,0.18765243]
[1641065935031,1.20032937,47330.0,47329.0,0.18765243]
[1641065935297,1.20032937,47330.0,47329.0,0.13765243]
[1641065935891,1.20096868,47330.0,47329.0,0.13765243]
[1641065936991,1.20153695,47330.0,47329.0,0.13765243]
[1641065937889,1.2213535,47330.0,47329.0,0.13765243]
[1641065938089,1.20003564,47330.0,47329.0,0.13765243]
[1641065938891,1.35003564,47330.0,47329.0,0.13765243]
[1641065939332,1.36906263,47330.0,47329.0,0.13765243]
[1641065939533,1.34924608,47330.0,47329.0,0.13765243]
[1641065939931,1.35105024,47330.0,47329.0,0.13765243]
[1641065940133,1.20105024,47330.0,47329.0,0.13765243]
[1641065941032,1.20053876,47330.0,47329.0,0.13765243]
[1641065941831,1.22192266,47330.0,47329.0,0.13765243]
[1641065942036,1.20160299,47330.0,47329.0,0.13765243]
[1641065942435,0.18160299,47330.0,47329.0,0.13765243]
[1641065942883,0.20112394,47330.0,47329.0,0.13765243]
[1641065943086,0.17974004,47330.0,47329.0,0.13765243]
[1641065943883,0.58974004,47330.0,47329.0,0.13765243]
[1641065944084,0.67021909,47330.0,47329.0,0.13765243]
[1641065944285,0.67021909,47330.0,47329.0,0.05357]
[1641065944985,1.23077943,47330.0,47329.0,0.05475357]
[1641065945185,0.18077943,47330.0,47329.0,0.19975357]
[1641065945983,0.59077943,47330.0,47329.0,0.19975357]
[1641065947230,0.57021909,47330.0,47329.0,0.19975357]
[1641065947427,0.18040177,47330.0,47329.0,0.19975357]
[1641065947830,0.50060015,47330.0,47329.0,0.19975357]
[1641065948230,0.48041747,47330.0,47329.0,0.19975357]
[1641065948931,0.77972756,47330.0,47329.0,0.19975357]
[1641065949130,0.75952918,47330.0,47329.0,0.19975357]
[1641065949929,0.77766188,47330.0,47329.0,0.19975357]
[1641065950130,0.75835179,47330.0,47329.0,0.19975357]
[1641065950385,0.74835179,47330.0,47329.0,0.19975357]
[1641065950883,0.76824109,47330.0,47329.0,0.05475357]
[1641065951087,0.76824109,47330.0,47329.0,0.05357]
[1641065951088,1.20780809,47330.0,47329.0,0.05357]
[1641065951683,1.16978609,47330.0,47329.0,0.05357]
[1641065951883,1.72906203,47330.0,47329.0,0.05235097]
[1641065952083,1.18906203,47330.0,47329.0,0.19735097]
[1641065952286,0.74949503,47330.0,47329.0,0.19735097]
[1641065952986,1.15905816,47330.0,47329.0,0.19735097]
[1641065953186,1.13978222,47330.0,47329.0,0.19735097]
[1641065953387,0.74978222,47330.0,47329.0,0.19735097]
[1641065953789,1.28978222,47330.0,47329.0,0.19735097]
[1641065954043,1.2920262,47330.0,47329.0,0.19735097]
[1641065954244,0.05357,47328.0,47314.0,0.38993485]
[1641065954444,0.05357,47321.0,47315.0,0.63405]
[1641065954644,0.05357,47318.0,47315.0,0.63405]
[1641065955247,0.05357,47318.0,47317.0,0.145]
[1641065955446,0.05357,47318.0,47317.0,0.77902]
[1641065955645,0.05357,47318.0,47317.0,1.118587]
[1641065955845,1.07639993,47318.0,47317.0,1.118587]
[1641065956046,1.18206093,47318.0,47317.0,0.77902]
[1641065956545,0.21206093,47318.0,47317.0,0.77902]
[1641065956746,0.60206093,47318.0,47317.0,1.118587]
[1641065956947,0.62075661,47318.0,47317.0,1.48728362]
[1641065957149,0.23075661,47318.0,47317.0,1.48728362]
[1641065957354,0.12509561,47318.0,47317.0,1.48728362]
[1641065957648,0.07226568,47318.0,47317.0,1.48728362]
[1641065958097,0.05357,47318.0,47317.0,1.53728362]
[1641065960403,0.00927216,47323.0,47319.0,0.05357]
[1641065960598,0.00927216,47323.0,47322.0,0.47763482]
[1641065960798,0.00927216,47323.0,47322.0,1.21158482]
[1641065961200,0.00927216,47323.0,47322.0,1.51009848]
[1641065961541,0.00927216,47323.0,47322.0,1.027087]
[1641065961743,0.45927216,47323.0,47322.0,1.027087]
[1641065961943,0.00927216,47323.0,47322.0,1.027087]
[1641065962346,0.05281553,47324.0,47322.0,1.027087]
[1641065962744,0.05281553,47324.0,47323.0,0.19857]
[1641065963043,0.00010954,47324.0,47323.0,1.172077]
[1641065963243,0.00010954,47324.0,47323.0,1.54244499]